[Event "*** Titled Tuesday 3|2 Blitz"]
[Site "Chess.com"]
[Date "2015.09.01"]
[Round "4"]
[White "penguingm1"]
[Black "E-Shaposhnikov"]
[Result "0-1"]
[WhiteElo "2507"]
[BlackElo "2401"]
[TimeControl "180+2"]
[EndTime "11:48:48 PDT"]
[Termination "E-Shaposhnikov won by resignation"]

1. d4 {[%clk 0:02:53.7]} 1... Nf6 {[%clk 0:03:00.5]} 2. c4 {[%clk 0:02:53.7]}
2... e6 {[%clk 0:03:02.1]} 3. Nc3 {[%clk 0:02:54.4]} 3... Bb4 {[%clk 0:03:02.2]}
4. Qc2 {[%clk 0:02:55.2]} 4... b6 {[%clk 0:03:00.6]} 5. e4 {[%clk 0:02:55.6]}
5... c5 {[%clk 0:02:50.2]} 6. d5 {[%clk 0:02:56.4]} 6... exd5 {[%clk 0:02:50.6]}
7. exd5 {[%clk 0:02:57.1]} 7... Qe7+ {[%clk 0:02:51.9]} 8. Ne2 {[%clk
0:02:56.3]} 8... b5 {[%clk 0:02:44.9]} 9. Bg5 {[%clk 0:02:57.1]} 9... bxc4
{[%clk 0:02:44.5]} 10. O-O-O {[%clk 0:02:53.5]} 10... d6 {[%clk 0:02:25.7]} 11.
Ng3 {[%clk 0:02:45.4]} 11... h6 {[%clk 0:02:16.5]} 12. Bxc4 {[%clk 0:02:31.7]}
12... O-O {[%clk 0:02:11.9]} 13. Rhe1 {[%clk 0:02:25.5]} 13... Qd8 {[%clk
0:02:12.8]} 14. Bf4 {[%clk 0:02:07.4]} 14... Ng4 {[%clk 0:02:00.2]} 15. h3
{[%clk 0:01:22.1]} 15... Ne5 {[%clk 0:01:51]} 16. Bxe5 {[%clk 0:01:04.7]} 16...
dxe5 {[%clk 0:01:52.9]} 17. Rxe5 {[%clk 0:01:05.5]} 17... Nd7 {[%clk 0:01:53.5]}
18. Ree1 {[%clk 0:01:03.4]} 18... Nb6 {[%clk 0:01:54.3]} 19. Be2 {[%clk
0:01:00.1]} 19... Bd7 {[%clk 0:01:42]} 20. Bf3 {[%clk 0:00:48.1]} 20... Rb8
{[%clk 0:01:41.7]} 21. Nge4 {[%clk 0:00:47.5]} 21... Nc4 {[%clk 0:01:37.7]} 22.
Re2 {[%clk 0:00:37.5]} 22... Qa5 {[%clk 0:01:35.8]} 23. Qd3 {[%clk 0:00:32.3]}
23... Nxb2 {[%clk 0:01:20.7]} 24. Rxb2 {[%clk 0:00:32.8]} 24... Ba3 {[%clk
0:01:22.2]} 25. Rd2 {[%clk 0:00:34.3]} 25... Rxb2 {[%clk 0:01:23.1]} 26. Rxb2
{[%clk 0:00:34.9]} 26... Rb8 {[%clk 0:01:24.8]} 27. Nd1 {[%clk 0:00:35.4]} 27...
Bxb2+ {[%clk 0:00:53.6]} 28. Nxb2 {[%clk 0:00:36.4]} 28... Qxa2 {[%clk
0:00:55.2]} 29. Qc3 {[%clk 0:00:26.6]} 29... Rb3 {[%clk 0:00:50.3]} 30. Qc2
{[%clk 0:00:20.1]} 30... Qa1+ {[%clk 0:00:34]} 31. Qb1 {[%clk 0:00:20.6]} 31...
Qa3 {[%clk 0:00:35.9]} 32. Nd2 {[%clk 0:00:17.9]} 32... Rc3+ {[%clk 0:00:34.7]}
33. Kd1 {[%clk 0:00:19.2]} 33... Qb4 {[%clk 0:00:29.1]} 34. Qa2 {[%clk
0:00:16.2]} 34... a5 {[%clk 0:00:29.3]} 35. Be2 {[%clk 0:00:15.8]} 35... a4
{[%clk 0:00:29.2]} 36. Nd3 {[%clk 0:00:17.1]} 36... Qd4 {[%clk 0:00:28.3]} 37.
Ne1 {[%clk 0:00:17.6]} 37... a3 {[%clk 0:00:29]} 38. Nc2 {[%clk 0:00:15.6]}
38... Ba4 {[%clk 0:00:30.4]} 39. Ke1 {[%clk 0:00:07.5]} 39... Rxc2 {[%clk
0:00:30.4]} 40. Qxa3 {[%clk 0:00:08.4]} 40... Qxd2+ {[%clk 0:00:31.2]} 41. Kf1
{[%clk 0:00:09.6]} 41... Rc1+ {[%clk 0:00:31.8]} 0-1

[Event "*** Titled Tuesday 3|2 Blitz"]
[Site "Chess.com"]
[Date "2015.09.01"]
[Round "4"]
[White "alexsuper1987"]
[Black "bugsbunny444"]
[Result "0-1"]
[WhiteElo "2133"]
[BlackElo "2298"]
[TimeControl "180+2"]
[EndTime "11:48:55 PDT"]
[Termination "bugsbunny444 won by resignation"]

1. e4 {[%clk 0:03:01.9]} 1... e6 {[%clk 0:02:56.3]} 2. d4 {[%clk 0:03:02.4]}
2... d5 {[%clk 0:02:57.7]} 3. Nc3 {[%clk 0:03:04]} 3... Nf6 {[%clk 0:02:58.6]}
4. Bg5 {[%clk 0:03:03.8]} 4... Bb4 {[%clk 0:02:59.3]} 5. e5 {[%clk 0:03:04.5]}
5... h6 {[%clk 0:03:00.8]} 6. Be3 {[%clk 0:03:05.6]} 6... Ne4 {[%clk 0:03:01.7]}
7. Qg4 {[%clk 0:03:07.1]} 7... g6 {[%clk 0:03:02.4]} 8. Bd3 {[%clk 0:03:02.3]}
8... Nxc3 {[%clk 0:03:03.4]} 9. Bd2 {[%clk 0:03:01.9]} 9... c5 {[%clk
0:03:00.1]} 10. bxc3 {[%clk 0:02:56.7]} 10... Ba5 {[%clk 0:03:01.2]} 11. Nf3
{[%clk 0:02:42.5]} 11... c4 {[%clk 0:02:55.9]} 12. Be2 {[%clk 0:02:42.1]} 12...
Bd7 {[%clk 0:02:48.5]} 13. h4 {[%clk 0:02:41.1]} 13... Qe7 {[%clk 0:02:43.4]}
14. h5 {[%clk 0:02:18.9]} 14... g5 {[%clk 0:02:44.4]} 15. O-O {[%clk 0:02:09.9]}
15... Ba4 {[%clk 0:02:41.3]} 16. Rac1 {[%clk 0:01:56.9]} 16... Nc6 {[%clk
0:02:37.5]} 17. Nxg5 {[%clk 0:01:29.7]} 17... hxg5 {[%clk 0:02:26.3]} 18. Bxg5
{[%clk 0:01:31.6]} 18... Qf8 {[%clk 0:01:33.5]} 19. Bf6 {[%clk 0:01:31.5]} 19...
Bxc3 {[%clk 0:01:11.5]} 20. Bxh8 {[%clk 0:00:48.7]} 20... Qxh8 {[%clk
0:01:12.3]} 21. Rfd1 {[%clk 0:00:50.3]} 21... O-O-O {[%clk 0:01:07.9]} 22. Qf3
{[%clk 0:00:41.2]} 22... Bxd4 {[%clk 0:01:08]} 23. Qxf7 {[%clk 0:00:41.3]} 23...
Qxe5 {[%clk 0:00:58.7]} 24. Bg4 {[%clk 0:00:28.4]} 24... Kb8 {[%clk 0:00:32.1]}
25. Qxe6 {[%clk 0:00:26.1]} 25... Qxe6 {[%clk 0:00:29]} 26. Bxe6 {[%clk
0:00:28]} 26... Bb2 {[%clk 0:00:26.8]} 27. Rb1 {[%clk 0:00:22.1]} 27... Bxc2
{[%clk 0:00:23.5]} 28. Rxb2 {[%clk 0:00:23.1]} 28... Bxd1 {[%clk 0:00:24.6]} 29.
Rd2 {[%clk 0:00:24.8]} 29... Bxh5 {[%clk 0:00:22.6]} 30. g4 {[%clk 0:00:22.9]}
30... Bg6 {[%clk 0:00:21.9]} 31. f4 {[%clk 0:00:20.4]} 31... c3 {[%clk 0:00:18]}
32. Rd1 {[%clk 0:00:21.8]} 32... Be4 {[%clk 0:00:14.7]} 33. f5 {[%clk
0:00:16.9]} 33... c2 {[%clk 0:00:13.7]} 34. Rc1 {[%clk 0:00:18]} 34... Nb4
{[%clk 0:00:13.8]} 35. f6 {[%clk 0:00:13.3]} 35... d4 {[%clk 0:00:11.9]} 36. Kf2
{[%clk 0:00:12.6]} 36... d3 {[%clk 0:00:12.7]} 37. f7 {[%clk 0:00:10.2]} 37...
d2 {[%clk 0:00:12.9]} 38. Rxc2 {[%clk 0:00:11]} 38... Bxc2 {[%clk 0:00:11.4]}
0-1

[Event "*** Titled Tuesday 3|2 Blitz"]
[Site "Chess.com"]
[Date "2015.09.01"]
[Round "4"]
[White "Tirantes"]
[Black "ItalianMachine"]
[Result "1-0"]
[WhiteElo "2232"]
[BlackElo "2205"]
[TimeControl "180+2"]
[EndTime "11:49:04 PDT"]
[Termination "Tirantes won on time"]

1. c4 {[%clk 0:03:01.9]} 1... Nf6 {[%clk 0:02:59.8]} 2. Nf3 {[%clk 0:02:59.3]}
2... g6 {[%clk 0:03:00.9]} 3. g3 {[%clk 0:02:57.1]} 3... Bg7 {[%clk 0:02:59.6]}
4. Bg2 {[%clk 0:02:56.7]} 4... d6 {[%clk 0:03:00.7]} 5. d4 {[%clk 0:02:55.7]}
5... O-O {[%clk 0:03:01.8]} 6. O-O {[%clk 0:02:55.4]} 6... Nbd7 {[%clk
0:03:02.7]} 7. Nc3 {[%clk 0:02:54.7]} 7... e5 {[%clk 0:03:03.5]} 8. e4 {[%clk
0:02:53.9]} 8... Re8 {[%clk 0:03:02.5]} 9. Be3 {[%clk 0:02:38.4]} 9... c6 {[%clk
0:03:03.2]} 10. d5 {[%clk 0:02:31.6]} 10... Qc7 {[%clk 0:03:00.8]} 11. Rc1
{[%clk 0:02:23]} 11... c5 {[%clk 0:02:48.6]} 12. Ne1 {[%clk 0:02:17.3]} 12... a6
{[%clk 0:02:41.9]} 13. a4 {[%clk 0:02:12.9]} 13... b6 {[%clk 0:02:42.1]} 14. Nd3
{[%clk 0:02:10.7]} 14... Rb8 {[%clk 0:02:42.7]} 15. Bh3 {[%clk 0:01:58.8]} 15...
Nf8 {[%clk 0:02:41.5]} 16. Bxc8 {[%clk 0:01:57.9]} 16... Qxc8 {[%clk 0:02:43.4]}
17. Kg2 {[%clk 0:01:56]} 17... Ng4 {[%clk 0:02:39.5]} 18. Bd2 {[%clk 0:01:54.5]}
18... f5 {[%clk 0:02:40.9]} 19. f3 {[%clk 0:01:46.2]} 19... Nh6 {[%clk
0:02:40.9]} 20. Be3 {[%clk 0:01:33.2]} 20... Nd7 {[%clk 0:02:30]} 21. Qd2 {[%clk
0:01:30.7]} 21... Nf7 {[%clk 0:02:31.1]} 22. exf5 {[%clk 0:01:22.7]} 22... gxf5
{[%clk 0:02:31.1]} 23. f4 {[%clk 0:01:23.5]} 23... e4 {[%clk 0:02:31.6]} 24. Nf2
{[%clk 0:01:19.9]} 24... Nf6 {[%clk 0:02:33]} 25. b3 {[%clk 0:01:15.7]} 25...
Nh6 {[%clk 0:02:29.4]} 26. h3 {[%clk 0:01:09.9]} 26... Qd7 {[%clk 0:02:29.8]}
27. Rg1 {[%clk 0:01:06.9]} 27... Kh8 {[%clk 0:02:30.3]} 28. Kh1 {[%clk
0:00:59.4]} 28... Rg8 {[%clk 0:02:19.7]} 29. Qe2 {[%clk 0:00:58]} 29... Bf8
{[%clk 0:02:20.7]} 30. Ncd1 {[%clk 0:00:50.4]} 30... Be7 {[%clk 0:02:21.3]} 31.
Bd2 {[%clk 0:00:49.2]} 31... Rg7 {[%clk 0:02:22.2]} 32. Bc3 {[%clk 0:00:47.5]}
32... b5 {[%clk 0:02:16.1]} 33. g4 {[%clk 0:00:39.2]} 33... fxg4 {[%clk
0:02:02.7]} 34. hxg4 {[%clk 0:00:38.8]} 34... Nhxg4 {[%clk 0:01:55.8]} 35. Nxg4
{[%clk 0:00:37]} 35... Rbg8 {[%clk 0:01:32.8]} 36. Nde3 {[%clk 0:00:30.3]} 36...
Rg6 {[%clk 0:01:00.5]} 37. Qh2 {[%clk 0:00:25.3]} 37... Rxg4 {[%clk 0:00:37.8]}
38. Nxg4 {[%clk 0:00:23]} 38... Rxg4 {[%clk 0:00:38.1]} 39. Qh6 {[%clk 0:00:18]}
39... Kg8 {[%clk 0:00:07.3]} 40. Bxf6 {[%clk 0:00:15.7]} 40... Bxf6 {[%clk
0:00:02.1]} 41. Qxf6 {[%clk 0:00:13.8]} 1-0

[Event "*** Titled Tuesday 3|2 Blitz"]
[Site "Chess.com"]
[Date "2015.09.01"]
[Round "4"]
[White "amazingoid"]
[Black "Maitreia"]
[Result "1-0"]
[WhiteElo "2344"]
[BlackElo "2469"]
[TimeControl "180+2"]
[EndTime "11:49:12 PDT"]
[Termination "amazingoid won by resignation"]

1. e4 {[%clk 0:03:01.9]} 1... c5 {[%clk 0:03:00.6]} 2. Nc3 {[%clk 0:03:02.5]}
2... g6 {[%clk 0:03:00.8]} 3. d4 {[%clk 0:03:03.1]} 3... cxd4 {[%clk 0:03:02.7]}
4. Qxd4 {[%clk 0:03:04.2]} 4... Nf6 {[%clk 0:03:04.2]} 5. Bb5 {[%clk 0:03:05.3]}
5... a6 {[%clk 0:03:04.2]} 6. e5 {[%clk 0:03:06.6]} 6... axb5 {[%clk 0:03:04.3]}
7. exf6 {[%clk 0:03:07.8]} 7... Nc6 {[%clk 0:02:35.8]} 8. Qe3 {[%clk 0:03:08.3]}
8... e6 {[%clk 0:02:20.8]} 9. Nf3 {[%clk 0:03:04.5]} 9... d5 {[%clk 0:01:55.6]}
10. Nxb5 {[%clk 0:02:44.3]} 10... Qa5+ {[%clk 0:01:55.7]} 11. Nc3 {[%clk
0:02:45.2]} 11... Bc5 {[%clk 0:01:53.2]} 12. Qd2 {[%clk 0:02:24.6]} 12... Bb4
{[%clk 0:01:09.6]} 13. O-O {[%clk 0:02:22]} 13... Bd7 {[%clk 0:01:01]} 14. a3
{[%clk 0:02:16.5]} 14... Bxc3 {[%clk 0:00:55]} 15. bxc3 {[%clk 0:02:15.2]} 15...
O-O-O {[%clk 0:00:49.8]} 16. Re1 {[%clk 0:02:03.6]} 16... Rhe8 {[%clk
0:00:47.9]} 17. Ne5 {[%clk 0:02:00.4]} 17... Nxe5 {[%clk 0:00:45.5]} 18. Rxe5
{[%clk 0:02:02.3]} 18... Bb5 {[%clk 0:00:37.7]} 19. Qd4 {[%clk 0:02:00.5]} 19...
Qa4 {[%clk 0:00:32.1]} 20. Be3 {[%clk 0:01:35.5]} 20... Rd6 {[%clk 0:00:20.4]}
21. Rb1 {[%clk 0:01:25.3]} 21... Qxd4 {[%clk 0:00:14.2]} 22. Bxd4 {[%clk
0:01:22.2]} 22... Ba4 {[%clk 0:00:14.3]} 23. Re2 {[%clk 0:01:16.8]} 23... Rc6
{[%clk 0:00:15.7]} 24. Rb4 {[%clk 0:01:14.8]} 24... b5 {[%clk 0:00:17.1]} 25. f4
{[%clk 0:01:15.1]} 25... Kd7 {[%clk 0:00:18.4]} 26. Kf2 {[%clk 0:01:15.9]} 26...
Rec8 {[%clk 0:00:19.9]} 27. g4 {[%clk 0:01:13]} 27... h6 {[%clk 0:00:20.7]} 28.
Kg3 {[%clk 0:01:12.5]} 28... Rxc3+ {[%clk 0:00:19.7]} 29. Bxc3 {[%clk
0:01:11.1]} 29... Rxc3+ {[%clk 0:00:21.6]} 30. Kf2 {[%clk 0:01:05.5]} 30... Rxa3
{[%clk 0:00:22.7]} 31. Re3 {[%clk 0:01:04.1]} 31... Ra2 {[%clk 0:00:23.4]} 32.
Rc3 {[%clk 0:01:04.2]} 32... Bxc2 {[%clk 0:00:23.5]} 33. Kg3 {[%clk 0:00:57.1]}
33... Ba4 {[%clk 0:00:21.9]} 34. Rb1 {[%clk 0:00:54]} 34... Rd2 {[%clk
0:00:20.1]} 35. Rbc1 {[%clk 0:00:54.3]} 35... d4 {[%clk 0:00:21.6]} 36. Rc7+
{[%clk 0:00:52.8]} 36... Kd6 {[%clk 0:00:23.2]} 37. Rxf7 {[%clk 0:00:51.5]}
37... d3 {[%clk 0:00:24.6]} 38. Rf8 {[%clk 0:00:32.7]} 38... Rc2 {[%clk
0:00:25.5]} 39. Rd8+ {[%clk 0:00:31.9]} 39... Kc7 {[%clk 0:00:25.6]} 40. Rxd3
{[%clk 0:00:25.3]} 40... Rxc1 {[%clk 0:00:17.2]} 41. f7 {[%clk 0:00:26.6]} 41...
Rg1+ {[%clk 0:00:10.8]} 42. Kf2 {[%clk 0:00:25.1]} 42... Rd1 {[%clk 0:00:06.1]}
43. Rxd1 {[%clk 0:00:25]} 43... Bxd1 {[%clk 0:00:08]} 44. f8=Q {[%clk
0:00:26.6]} 44... Bxg4 {[%clk 0:00:07.3]} 45. Qxh6 {[%clk 0:00:27.4]} 45... Bf5
{[%clk 0:00:07.6]} 46. Ke3 {[%clk 0:00:28.5]} 46... Kc6 {[%clk 0:00:08.9]} 47.
Kd4 {[%clk 0:00:30]} 47... b4 {[%clk 0:00:10]} 48. Qf8 {[%clk 0:00:31.5]} 48...
Kb5 {[%clk 0:00:11.2]} 49. Qc5+ {[%clk 0:00:30.8]} 49... Ka4 {[%clk 0:00:12.8]}
50. Kc4 {[%clk 0:00:32.1]} 1-0

[Event "*** Titled Tuesday 3|2 Blitz"]
[Site "Chess.com"]
[Date "2015.09.01"]
[Round "4"]
[White "rikyshi"]
[Black "SidArun"]
[Result "0-1"]
[WhiteElo "2103"]
[BlackElo "1915"]
[TimeControl "180+2"]
[EndTime "11:49:52 PDT"]
[Termination "SidArun won by resignation"]

1. e4 {[%clk 0:03:01.9]} 1... c6 {[%clk 0:03:00.8]} 2. d4 {[%clk 0:03:02.3]}
2... d5 {[%clk 0:03:02]} 3. Nc3 {[%clk 0:03:03.6]} 3... dxe4 {[%clk 0:03:03.2]}
4. Nxe4 {[%clk 0:03:05.5]} 4... Bf5 {[%clk 0:03:05.1]} 5. Ng3 {[%clk 0:03:06.3]}
5... Bg6 {[%clk 0:03:06.3]} 6. h4 {[%clk 0:03:07.8]} 6... h6 {[%clk 0:03:07.2]}
7. Nh3 {[%clk 0:03:09]} 7... e6 {[%clk 0:02:49.6]} 8. Nf4 {[%clk 0:03:07.4]}
8... Bh7 {[%clk 0:02:47.2]} 9. Bc4 {[%clk 0:03:08.7]} 9... Nf6 {[%clk
0:02:44.3]} 10. c3 {[%clk 0:03:08.6]} 10... Bd6 {[%clk 0:02:44.2]} 11. Nfh5
{[%clk 0:03:08.2]} 11... Rg8 {[%clk 0:02:37.6]} 12. Bf4 {[%clk 0:03:01.4]} 12...
Nd5 {[%clk 0:02:24.6]} 13. Bxd6 {[%clk 0:02:54.2]} 13... Qxd6 {[%clk 0:02:24.8]}
14. Ne4 {[%clk 0:02:37.1]} 14... Bxe4 {[%clk 0:02:21.8]} 15. Qe2 {[%clk
0:02:22.4]} 15... Bg6 {[%clk 0:02:18]} 16. Ng3 {[%clk 0:02:20.4]} 16... Nf4
{[%clk 0:02:16.8]} 17. Qf3 {[%clk 0:02:20.8]} 17... Nd7 {[%clk 0:02:07.5]} 18.
h5 {[%clk 0:02:20.6]} 18... Bh7 {[%clk 0:02:08.3]} 19. O-O-O {[%clk 0:02:19.8]}
19... Nb6 {[%clk 0:02:08.1]} 20. Bb3 {[%clk 0:02:16.4]} 20... Nbd5 {[%clk
0:02:04.8]} 21. Rhe1 {[%clk 0:02:15.9]} 21... O-O-O {[%clk 0:01:57.5]} 22. Re5
{[%clk 0:02:14.8]} 22... Nd3+ {[%clk 0:01:54.3]} 23. Rxd3 {[%clk 0:02:14.2]}
23... Bxd3 {[%clk 0:01:54.9]} 24. Qxd3 {[%clk 0:02:15.2]} 24... f6 {[%clk
0:01:56.4]} 25. Re1 {[%clk 0:02:11.3]} 25... Qf4+ {[%clk 0:01:57]} 26. Kb1
{[%clk 0:02:08.2]} 26... Qxf2 {[%clk 0:01:53.4]} 27. Rxe6 {[%clk 0:02:08]} 27...
Rge8 {[%clk 0:01:53.2]} 28. Re4 {[%clk 0:01:19.8]} 28... Qg1+ {[%clk 0:01:50.6]}
29. Bd1 {[%clk 0:01:18.8]} 29... Rxe4 {[%clk 0:01:47.7]} 30. Nxe4 {[%clk
0:01:16.9]} 30... Ne3 {[%clk 0:01:48.5]} 31. Kc1 {[%clk 0:00:55.1]} 31... Qxd1+
{[%clk 0:01:41.6]} 32. Qxd1 {[%clk 0:00:55.9]} 32... Nxd1 {[%clk 0:01:43.3]} 33.
Kxd1 {[%clk 0:00:57.8]} 33... b6 {[%clk 0:01:44.9]} 34. Kd2 {[%clk 0:00:56.4]}
34... Rd5 {[%clk 0:01:45]} 35. g4 {[%clk 0:00:55.8]} 35... Kd7 {[%clk
0:01:39.6]} 36. Ke3 {[%clk 0:00:56.3]} 36... Ke6 {[%clk 0:01:35.5]} 37. Ng3
{[%clk 0:00:53.6]} 37... Rg5 {[%clk 0:01:34.9]} 38. Kf4 {[%clk 0:00:53.3]} 38...
c5 {[%clk 0:01:30]} 39. Ne4 {[%clk 0:00:37.2]} 39... Rd5 {[%clk 0:01:25.6]} 40.
dxc5 {[%clk 0:00:31.7]} 40... bxc5 {[%clk 0:01:25.9]} 41. c4 {[%clk 0:00:32.8]}
41... Rd4 {[%clk 0:01:26.9]} 42. Ke3 {[%clk 0:00:29.2]} 42... Rxc4 {[%clk
0:01:27.4]} 43. b3 {[%clk 0:00:29.9]} 43... Rc2 {[%clk 0:01:26.1]} 44. a4 {[%clk
0:00:29.4]} 44... Ke5 {[%clk 0:01:26.9]} 45. Kd3 {[%clk 0:00:21.5]} 45... Rc1
{[%clk 0:01:24.8]} 46. Nc3 {[%clk 0:00:19.2]} 46... Rg1 {[%clk 0:01:21]} 47. Ne4
{[%clk 0:00:17.5]} 47... Rxg4 {[%clk 0:01:14.6]} 48. Nxc5 {[%clk 0:00:17.7]}
48... Kd5 {[%clk 0:01:15.9]} 49. Nd7 {[%clk 0:00:18.2]} 49... Rg3+ {[%clk
0:01:15.8]} 50. Kc2 {[%clk 0:00:18.7]} 50... f5 {[%clk 0:01:17.1]} 51. b4 {[%clk
0:00:16.7]} 51... Kc4 {[%clk 0:01:17.9]} 52. b5 {[%clk 0:00:17.5]} 52... Ra3
{[%clk 0:01:16.2]} 53. Ne5+ {[%clk 0:00:16.9]} 53... Kd5 {[%clk 0:01:16.9]} 54.
Nd3 {[%clk 0:00:09]} 54... Rxa4 {[%clk 0:01:15.6]} 55. Kb3 {[%clk 0:00:10]}
55... Rd4 {[%clk 0:01:15.8]} 56. Nb4+ {[%clk 0:00:10.7]} 56... Rxb4+ {[%clk
0:01:16.4]} 57. Kxb4 {[%clk 0:00:12.6]} 57... f4 {[%clk 0:01:17.8]} 58. Kc3
{[%clk 0:00:13.9]} 58... Ke4 {[%clk 0:01:18]} 59. Kd2 {[%clk 0:00:15.8]} 59...
Kf5 {[%clk 0:01:16.9]} 60. Kd3 {[%clk 0:00:15.9]} 60... Kg4 {[%clk 0:01:17.9]}
61. Ke2 {[%clk 0:00:16.2]} 61... Kg3 {[%clk 0:01:18.7]} 62. Kf1 {[%clk
0:00:16.9]} 62... Kf3 {[%clk 0:01:20]} 63. Kg1 {[%clk 0:00:18]} 63... Ke2 {[%clk
0:01:21.2]} 64. Kg2 {[%clk 0:00:19.1]} 64... f3+ {[%clk 0:01:22.6]} 65. Kg3
{[%clk 0:00:21]} 65... f2 {[%clk 0:01:24.1]} 0-1

[Event "*** Titled Tuesday 3|2 Blitz"]
[Site "Chess.com"]
[Date "2015.09.01"]
[Round "4"]
[White "BIG_Pirate"]
[Black "Fh2411"]
[Result "0-1"]
[WhiteElo "2201"]
[BlackElo "2209"]
[TimeControl "180+2"]
[EndTime "11:50:17 PDT"]
[Termination "Fh2411 won by checkmate"]

1. Nf3 {[%clk 0:03:01.9]} 1... d5 {[%clk 0:02:58.4]} 2. c4 {[%clk 0:03:02.8]}
2... c6 {[%clk 0:02:59.1]} 3. d4 {[%clk 0:03:03]} 3... Nf6 {[%clk 0:02:59.5]} 4.
Nc3 {[%clk 0:03:04.1]} 4... dxc4 {[%clk 0:03:00.5]} 5. a4 {[%clk 0:03:02]} 5...
Bf5 {[%clk 0:03:00.1]} 6. Ne5 {[%clk 0:03:02.4]} 6... Nbd7 {[%clk 0:02:59.2]} 7.
Nxc4 {[%clk 0:03:03]} 7... Qc7 {[%clk 0:03:00.8]} 8. g3 {[%clk 0:02:57]} 8... e5
{[%clk 0:03:01.6]} 9. dxe5 {[%clk 0:02:53.7]} 9... Nxe5 {[%clk 0:03:02.3]} 10.
Bf4 {[%clk 0:02:53.2]} 10... Nfd7 {[%clk 0:03:02.2]} 11. Bg2 {[%clk 0:02:29.1]}
11... f6 {[%clk 0:03:01.6]} 12. O-O {[%clk 0:02:29.4]} 12... Nc5 {[%clk
0:03:01.2]} 13. Nxe5 {[%clk 0:02:28.7]} 13... fxe5 {[%clk 0:03:01.4]} 14. Be3
{[%clk 0:02:16.4]} 14... Rd8 {[%clk 0:02:58.3]} 15. Qe1 {[%clk 0:02:17.1]} 15...
Be7 {[%clk 0:02:43.8]} 16. b4 {[%clk 0:02:14]} 16... Nb3 {[%clk 0:02:43]} 17.
Ra3 {[%clk 0:02:12.7]} 17... Nd4 {[%clk 0:02:41.1]} 18. Bxd4 {[%clk 0:02:10.7]}
18... exd4 {[%clk 0:02:07.5]} 19. Ne4 {[%clk 0:02:09.4]} 19... a5 {[%clk
0:02:07.5]} 20. Rf3 {[%clk 0:02:07.9]} 20... Bxe4 {[%clk 0:02:06.4]} 21. Rf4
{[%clk 0:02:01]} 21... Bxg2 {[%clk 0:02:06.7]} 22. Kxg2 {[%clk 0:02:02.9]} 22...
axb4 {[%clk 0:02:02.4]} 23. Qb1 {[%clk 0:01:57.9]} 23... c5 {[%clk 0:01:59.2]}
24. Kg1 {[%clk 0:01:50.3]} 24... Rd6 {[%clk 0:01:52.3]} 25. Rc1 {[%clk
0:01:44.6]} 25... Rf6 {[%clk 0:01:39.5]} 26. Re4 {[%clk 0:01:44.2]} 26... O-O
{[%clk 0:01:33.9]} 27. f3 {[%clk 0:01:40.5]} 27... Qd7 {[%clk 0:01:29.2]} 28.
Qb3+ {[%clk 0:01:35.6]} 28... Kh8 {[%clk 0:01:29.8]} 29. Kg2 {[%clk 0:01:29.5]}
29... Bd6 {[%clk 0:01:29.6]} 30. a5 {[%clk 0:01:20.3]} 30... Rh6 {[%clk
0:01:19.8]} 31. h4 {[%clk 0:01:13.2]} 31... Qc7 {[%clk 0:01:18.9]} 32. Qd5
{[%clk 0:01:04.4]} 32... Qxa5 {[%clk 0:01:09.3]} 33. g4 {[%clk 0:00:59.5]} 33...
b3 {[%clk 0:01:01.4]} 34. g5 {[%clk 0:00:56.1]} 34... Rg6 {[%clk 0:00:59.4]} 35.
h5 {[%clk 0:00:50.9]} 35... Qd2 {[%clk 0:00:38.4]} 36. hxg6 {[%clk 0:00:42.3]}
36... Qxc1 {[%clk 0:00:38.2]} 37. Qxd6 {[%clk 0:00:39.9]} 37... Qxg5+ {[%clk
0:00:38.1]} 38. Rg4 {[%clk 0:00:41]} 38... Qd8 {[%clk 0:00:37.7]} 39. Qxc5
{[%clk 0:00:40.4]} 39... h6 {[%clk 0:00:30.4]} 40. Rxd4 {[%clk 0:00:37.4]} 40...
Qf6 {[%clk 0:00:31.4]} 41. Rd6 {[%clk 0:00:30.7]} 41... Qf4 {[%clk 0:00:25.6]}
42. Rb6 {[%clk 0:00:24.3]} 42... Re8 {[%clk 0:00:23.6]} 43. e4 {[%clk 0:00:17]}
43... Qd2+ {[%clk 0:00:21.6]} 44. Kg3 {[%clk 0:00:17.5]} 44... b2 {[%clk
0:00:21.9]} 45. Qb4 {[%clk 0:00:08.3]} 45... Qg5+ {[%clk 0:00:18.9]} 46. Kf2
{[%clk 0:00:09.5]} 46... Rd8 {[%clk 0:00:13.4]} 47. Ke2 {[%clk 0:00:07.4]} 47...
Qg2+ {[%clk 0:00:12.1]} 48. Ke3 {[%clk 0:00:08.7]} 48... Qg1+ {[%clk 0:00:12.4]}
49. Ke2 {[%clk 0:00:09.6]} 49... Qd1+ {[%clk 0:00:11.9]} 50. Ke3 {[%clk
0:00:10.3]} 50... Qc1+ {[%clk 0:00:11.7]} 51. Ke2 {[%clk 0:00:09.8]} 51... Qc2+
{[%clk 0:00:12.4]} 52. Ke3 {[%clk 0:00:09.9]} 52... Rd3+ {[%clk 0:00:09.4]} 53.
Kf4 {[%clk 0:00:10.8]} 53... Qc1+ {[%clk 0:00:09]} 54. Ke5 {[%clk 0:00:10]}
54... Qg5+ {[%clk 0:00:08.5]} 55. Ke6 {[%clk 0:00:10.4]} 55... Qxg6+ {[%clk
0:00:09.7]} 56. Ke7 {[%clk 0:00:10.8]} 56... Qg5+ {[%clk 0:00:10.8]} 57. Ke6
{[%clk 0:00:10.1]} 57... Qf6# {[%clk 0:00:11.5]} 0-1